bitfinex/quotes_ETHUSD_20240717
["timestamp","ask_amount","ask_price","bid_price","bid_amount"]
[1721233174409,2.93617,3405.8,3405.3,0.005]
[1721233174601,0.02923115,3406.5,3405.3,0.005]
[1721233174902,0.57923115,3406.5,3405.3,0.005]
[1721233175253,2.9358,3406.3,3405.3,0.005]
[1721233175554,0.57923115,3406.5,3405.3,0.005]
[1721233175555,2.93616,3405.9,3405.3,0.005]
[1721233175749,2.93651,3405.4,3405.3,0.005]
[1721233176303,5.87302,3405.4,3405.3,0.005]
[1721233176512,2.93651,3405.4,3405.3,0.005]
[1721233176745,2.93618,3405.8,3405.3,0.005]
[1721233176892,0.02923115,3405.7,3405.3,0.005]
[1721233177201,2.93587,3406.2,3405.3,0.005]
[1721233177546,0.02923115,3406.3,3405.3,0.005]
[1721233177870,0.02923115,3406.3,3405.3,2.94153]
[1721233178040,2.93552,3406.6,3405.3,2.94153]
[1721233178343,0.02923115,3406.5,3405.6,2.93631]
[1721233178517,2.93507,3407.1,3405.6,2.93631]
[1721233178688,0.02923115,3407.0,3405.7,0.293631]
[1721233179230,0.02923115,3407.0,3405.5,2.93641]
[1721233179539,2.93522,3406.9,3405.3,0.005]
[1721233179741,2.93586,3406.2,3405.3,0.005]
[1721233179920,2.93626,3405.7,3405.3,0.005]
[1721233180088,0.02923115,3405.6,3405.3,0.005]
[1721233180297,2.93609,3405.9,3405.3,0.005]
[1721233180536,2.93626,3405.7,3405.3,0.005]
[1721233180831,2.93651,3405.4,3405.3,0.005]
[1721233181034,0.02923115,3405.4,3405.3,0.005]
[1721233182241,2.96574115,3405.4,3405.3,0.005]
[1721233182394,2.96574115,3405.4,3404.7,0.2038]
[1721233182395,2.93703,3404.8,3404.7,0.2038]
[1721233182600,5.87406,3404.8,3404.7,0.2038]
[1721233183048,2.2502,3404.5,3403.1,2.93841]
[1721233183227,2.93758,3404.2,3403.2,3.526023]
[1721233183422,0.02923115,3404.1,3403.2,2.93833]
[1721233183632,0.02923115,3404.1,3402.5,0.3060548]
[1721233183935,2.2502,3404.5,3403.1,2.93848]
[1721233184170,2.93753,3404.3,3403.3,2.93831]
[1721233184328,0.02923115,3404.2,3402.7,2.93877]
[1721233184514,0.02923115,3404.2,3403.4,2.93816]
[1721233185022,2.93642,3405.5,3403.7,2.93791]
[1721233185023,2.2502,3405.5,3403.7,2.93791]
[1721233185338,2.2502,3405.5,3403.0,5.33197]
[1721233185339,2.2502,3405.5,3404.0,2.9377]
[1721233185654,2.2502,3405.5,3404.3,2.93745]
[1721233185938,20.0,3405.7,3404.6,2.93712]
[1721233186141,20.0,3405.7,3404.7,0.587446]
[1721233186437,0.02923115,3405.6,3404.9,2.93694]
[1721233186651,0.02923115,3405.6,3405.0,2.93679]
[1721233186854,0.02923115,3405.6,3404.2,2.93754]
[1721233186855,20.0,3405.7,3404.2,5.33094]
[1721233186998,20.0,3405.7,3404.4,2.93731]
[1721233187200,20.0,3405.7,3404.3,3.0]
[1721233187201,0.02923115,3405.6,3404.3,3.0]
[1721233187447,0.02923115,3405.6,3404.4,0.53934]
[1721233187655,0.02923115,3405.6,3405.0,2.93678]
[1721233187998,20.0,3405.7,3404.4,0.53934]
[1721233188200,20.0,3405.7,3405.6,5.87268]
[1721233189022,19.6484375,3405.7,3405.6,5.87268]
[1721233189229,18.78498076,3405.7,3405.6,9.689932]
[1721233189540,18.78498076,3405.7,3405.6,12.689932]
[1721233189933,18.47312072,3405.7,3405.6,12.689932]
[1721233191201,18.47312072,3405.7,3405.6,2.93634]
[1721233191440,18.47312072,3405.7,3404.3,3.085]
[1721233191441,18.47312072,3405.7,3405.2,2.93664]
[1721233191763,18.47312072,3405.7,3404.1,5.37352]
[1721233191764,18.47312072,3405.7,3404.7,2.93706]
[1721233191952,18.47312072,3405.7,3405.4,2.93648]
[1721233192441,18.47312072,3405.7,3405.2,2.93668]
[1721233193081,0.02923115,3405.6,3405.2,2.93668]
[1721233193233,0.02923115,3405.6,3405.1,2.93676]
[1721233193433,18.47312072,3405.7,3405.2,2.93666]
[1721233193844,18.47312072,3405.7,3405.1,2.93676]
[1721233194042,18.47312072,3405.7,3405.6,2.93634]
[1721233194267,18.47312072,3405.7,3405.4,2.93651]
[1721233194475,18.47312072,3405.7,3405.5,2.93642]
[1721233194778,18.47312072,3405.7,3405.1,3.230416]
[1721233195086,18.47312072,3405.7,3405.6,2.93634]
[1721233195386,18.47312072,3405.7,3405.6,5.87268]
[1721233195902,18.47312072,3405.7,3405.6,14.20846]
[1721233196076,18.16643804,3405.7,3405.6,14.20846]
[1721233196277,18.16643804,3405.7,3405.6,17.20846]
[1721233196478,14.92858678,3405.7,3405.6,19.282706]
[1721233196670,10.52419678,3405.7,3405.6,19.282706]
[1721233197079,3.18354678,3405.7,3405.6,22.367706]
[1721233197295,3.18354678,3405.7,3405.6,19.282706]
[1721233197805,2.88508926,3405.7,3405.6,22.367706]
[1721233197971,1.41695926,3405.7,3405.6,25.304046]
[1721233198182,2.93384,3408.5,3407.4,2.93473]
[1721233198401,2.2965,3408.7,3407.4,2.93473]
[1721233198402,0.02923115,3408.4,3407.4,2.93473]
[1721233198719,0.02923115,3408.3,3407.4,2.93473]
[1721233198918,2.93382,3408.6,3406.3,2.93572]
[1721233199135,2.2965,3408.7,3406.2,3.0]
[1721233199136,2.2965,3408.7,3407.7,2.93448]
[1721233199422,5.23018,3408.7,3407.4,2.93471]
[1721233199579,0.02923115,3408.6,3407.4,2.93471]
[1721233199923,2.93376,3408.6,3407.4,2.93471]
[1721233200213,2.2965,3408.7,3407.5,2.93469]
[1721233200424,2.93384,3408.5,3407.4,2.93471]
[1721233200575,5.23023,3408.7,3407.6,2.93458]
[1721233200777,0.02923115,3408.6,3407.6,2.93458]
[1721233201279,3.39340157,3409.1,3407.9,2.93431]
[1721233201478,3.39340157,3409.1,3406.9,2.4162]
[1721233201479,2.9335,3408.9,3407.5,2.93466]
[1721233201683,0.02923115,3408.8,3407.3,2.93485]
[1721233202005,2.93399,3408.4,3406.7,2.93531]
[1721233202214,2.93399,3408.4,3407.1,2.93504]
[1721233202515,2.93399,3408.4,3405.5,3.534]
[1721233202516,2.93427,3408.0,3405.9,2.936]
[1721233202819,2.4499,3408.6,3406.5,2.9355]
[1721233202820,2.93453,3407.7,3406.5,2.9355]
[1721233203015,2.4499,3408.6,3406.7,2.93539]
[1721233203016,2.93419,3408.1,3406.7,2.93539]
[1721233203218,2.93403,3408.3,3407.0,2.93512]
[1721233203437,0.02923115,3408.2,3407.0,2.93512]
[1721233203587,2.93445,3407.8,3406.8,2.9353]
[1721233203933,2.93419,3408.1,3406.9,2.93521]
[1721233204087,0.02923115,3408.0,3406.7,2.93538]
[1721233204427,2.93436,3407.9,3406.7,2.93538]
[1721233204614,0.02923115,3407.8,3406.9,5.87027]
[1721233204932,0.02923115,3408.1,3407.3,2.93484]
[1721233205228,5.38365,3408.6,3407.5,2.93468]
[1721233205893,2.4499,3408.6,3407.5,2.93468]
[1721233206095,3.03899788,3409.2,3407.9,2.93429]
[1721233206298,3.03899788,3409.2,3407.5,0.293468]
[1721233206299,0.02923115,3408.8,3407.7,2.93445]
[1721233206503,2.4593,3409.2,3407.8,2.93437]
[1721233206716,2.4593,3409.2,3408.0,2.93419]
[1721233207025,2.4593,3409.2,3408.1,2.93416]
[1721233207384,2.4593,3409.2,3408.1,3.520995]
[1721233207385,5.39253,3409.2,3408.1,3.520995]
[1721233207582,2.4593,3409.2,3408.1,2.93416]
[1721233208209,2.4593,3409.2,3407.7,2.93452]
[1721233208210,2.93355,3408.9,3407.7,2.93452]
[1721233208381,2.96282115,3408.8,3407.7,2.93452]
[1721233208585,5.39257,3409.2,3408.0,2.93427]
[1721233208786,2.4593,3409.2,3408.1,2.93412]
[1721233209012,2.48853115,3409.2,3408.1,2.93415]
[1721233209321,2.48853115,3409.2,3408.4,2.9339]
[1721233209622,5.42177115,3409.2,3407.5,2.93469]
[1721233209820,5.42177115,3409.2,3407.6,0.293469]
[1721233210020,2.48853115,3409.2,3407.6,0.293469]
[1721233210222,0.57969788,3410.0,3407.6,0.293469]
[1721233210223,5.22772,3409.8,3408.7,2.93366]
[1721233210525,0.57969788,3410.2,3409.1,2.93325]
[1721233210526,0.02923115,3409.7,3409.1,2.93325]
[1721233210687,0.02923115,3410.1,3409.1,2.93325]
[1721233210886,0.02923115,3410.1,3409.0,2.93341]
[1721233211295,0.02923115,3410.3,3409.2,2.93323]
[1721233211499,2.295,3410.4,3409.6,2.93283]
[1721233211705,5.22665,3411.1,3409.9,2.93255]
[1721233212030,5.22665,3411.1,3409.4,2.93301]
[1721233212031,2.295,3411.1,3409.4,2.93301]
[1721233212235,2.295,3411.1,3409.1,2.4783]
[1721233212388,2.93083,3412.0,3409.3,3.085]
[1721233212389,0.02923115,3411.3,3409.3,3.085]
[1721233212735,0.02923115,3411.3,3410.2,2.93229]
[1721233212889,0.02923115,3411.3,3410.3,2.93229]
[1721233213084,0.02923115,3411.3,3410.4,2.93219]
[1721233213351,5.22609,3411.7,3410.5,2.93205]
[1721233213630,5.22609,3411.7,3410.6,2.93203]
[1721233213799,0.02923115,3411.6,3410.4,2.93219]
[1721233214134,0.02923115,3411.6,3410.3,2.93229]
[1721233214447,2.295,3411.7,3410.7,2.93194]
[1721233214730,2.93055,3412.4,3411.1,2.93155]
[1721233214731,5.36181,3412.4,3411.1,2.93155]
[1721233215029,0.45962717,3412.9,3411.5,2.93125]
[1721233215030,2.93037,3412.6,3411.5,2.93125]
[1721233215254,5.33478,3412.9,3410.5,2.4128]
[1721233215255,5.33478,3412.9,3411.6,2.93109]
[1721233215406,5.33478,3412.9,3411.1,2.93155]
[1721233215407,2.4047,3412.9,3411.1,2.93155]
[1721233215729,2.4047,3412.9,3411.8,2.93099]
[1721233215941,2.92965,3413.4,3412.0,2.93081]
[1721233216097,2.92965,3413.4,3412.1,2.93072]
[1721233216291,2.92965,3413.4,3411.4,3.085]
[1721233216292,2.95886115,3413.4,3411.4,3.085]
[1721233216501,2.92946,3413.6,3411.8,2.2936]
[1721233216701,2.3175,3414.1,3412.7,2.93022]
[1721233216702,5.24653,3414.1,3412.7,2.93022]
[1721233216906,5.24653,3414.1,3411.9,0.53786]
[1721233216907,2.3175,3414.1,3412.2,9.54962]
[1721233217131,2.92849,3414.8,3412.4,3.085]
[1721233217440,2.92849,3414.8,3413.1,2.92988]
[1721233217441,2.92862,3414.6,3413.1,2.92988]
[1721233217600,2.92862,3414.6,3412.6,3.085]
[1721233217601,2.9286,3414.6,3413.2,2.92979]
[1721233217800,2.9286,3414.6,3413.2,3.222769]
[1721233218163,5.24585,3414.9,3413.2,0.292979]
[1721233218298,2.34673115,3414.9,3412.5,3.0]
[1721233218646,2.34673115,3414.9,3411.8,5.22458]
[1721233218647,2.92895,3414.2,3412.3,3.0]
[1721233218807,2.92911,3414.0,3412.6,2.93023]
[1721233219148,2.92869,3414.5,3412.9,2.93004]
[1721233219313,2.92869,3414.5,3413.0,2.9299]
[1721233219850,2.95792115,3414.5,3412.6,2.9303]
[1721233219995,2.95792115,3414.5,3412.7,0.60203]
[1721233220195,2.92869,3414.5,3412.7,0.60203]
[1721233220396,2.92877,3414.4,3413.1,2.92987]
[1721233220633,2.92877,3414.4,3412.3,5.9305]
[1721233220634,2.92917,3414.0,3412.5,2.93038]
[1721233220796,2.95851115,3413.9,3412.6,3.0]
[1721233220996,2.92898,3414.2,3412.6,0.893056]
[1721233221223,2.92878,3414.4,3412.2,3.534]
[1721233221552,2.92878,3414.4,3413.2,2.92979]
[1721233221912,2.92886,3414.3,3412.9,2.93005]
[1721233222228,3.0773827,3415.0,3414.0,2.92907]
[1721233222229,0.1490527,3415.0,3414.0,2.92907]
[1721233222426,0.1490527,3415.0,3414.0,3.222007]
[1721233222733,0.1490527,3415.0,3413.2,8.25893]
[1721233222734,0.1490527,3415.0,3413.2,5.3292]
[1721233222926,2.92861,3414.6,3413.1,2.92982]
[1721233223127,0.02923115,3414.5,3412.9,2.93005]
[1721233223426,2.92903,3414.1,3412.5,2.93039]
[1721233223613,2.92843,3414.8,3412.4,2.3292]
[1721233223614,2.95837115,3414.0,3412.4,2.3292]
[1721233223822,2.92943,3413.7,3412.5,2.93039]
[1721233224146,2.3973,3414.2,3412.5,2.93039]
[1721233224147,2.92897,3414.2,3413.0,2.92996]
[1721233224362,2.3973,3414.9,3412.5,0.586103]
[1721233224363,2.92876,3414.5,3412.5,0.586103]
[1721233224653,2.92876,3414.5,3412.7,2.93017]
[1721233224855,2.9289,3414.3,3413.1,2.92988]
[1721233225061,2.9289,3414.3,3413.2,2.92978]
[1721233225353,5.32571,3414.9,3413.8,2.92926]
[1721233225513,2.92841,3414.9,3413.8,2.92926]
[1721233225717,2.92835,3414.9,3413.3,3.0]
[1721233225919,0.1490527,3415.0,3413.3,2.92969]
[1721233226118,0.02923115,3414.9,3413.4,5.92956]
[1721233226321,2.92849,3414.8,3413.5,2.92953]
[1721233226547,2.92849,3414.8,3413.6,2.92939]
[1721233226747,2.92853,3414.7,3413.5,2.92953]
[1721233226956,2.92853,3414.7,3413.4,1.1991934]
[1721233227162,2.92853,3414.7,3413.4,3.0]
[1721233227340,0.1490527,3415.0,3412.4,0.33806759]
[1721233227341,2.4288,3414.5,3412.4,3.26848759]
[1721233227539,2.92945,3413.7,3412.1,2.4439]
[1721233227759,2.92945,3413.7,3412.2,2.93058]
[1721233227970,2.92946,3413.6,3412.2,2.93058]
[1721233228293,2.92946,3413.6,3411.6,3.534]
[1721233228294,2.92968,3413.4,3412.0,2.93081]
[1721233228577,2.92968,3413.4,3412.3,2.93051]
[1721233228936,5.39406115,3413.3,3411.8,2.93099]
[1721233229131,5.39406115,3413.3,3410.8,9.8321]
[1721233229132,2.93024,3412.7,3410.8,9.8321]
[1721233229447,2.93043,3412.5,3411.4,2.93129]
[1721233229654,2.93024,3412.7,3411.4,2.93129]
[1721233229852,2.93007,3412.9,3411.6,2.93115]
[1721233230052,5.36482,3413.3,3411.6,0.05860945]
[1721233230229,5.36482,3413.3,3412.0,2.93083]
[1721233230451,2.92998,3413.0,3411.8,2.93094]
[1721233230681,2.92998,3413.0,3411.9,2.93085]
[1721233230845,2.4351,3413.3,3411.9,0.586192]
[1721233231060,5.36488,3413.3,3412.0,2.93076]
[1721233231276,5.36481,3413.3,3411.5,2.9312]
[1721233231486,2.92961,3413.5,3412.2,2.93059]
[1721233231771,0.05690747,3413.2,3412.0,2.93079]
[1721233231934,2.98537936,3413.4,3412.1,2.93072]
[1721233232133,2.4277,3414.0,3411.6,5.93114]
[1721233232134,0.05524424,3413.1,3411.9,2.9309]
[1721233232431,0.0552456,3413.0,3411.9,2.9309]
[1721233232685,0.0552456,3413.0,3411.9,2.93086]
[1721233232845,0.0552456,3413.0,3412.4,2.93048]
[1721233233223,2.4277,3414.0,3412.5,0.05859717]
[1721233233378,2.4277,3414.0,3413.1,2.92988]
[1721233233674,0.05601205,3413.9,3413.1,2.92988]
[1721233233871,0.05601205,3413.9,3413.1,3.52172946]
[1721233234057,2.929,3414.2,3413.1,3.52172946]
[1721233234368,0.05402615,3413.8,3413.2,2.92979]
[1721233234574,5.31327,3414.7,3412.7,6.09]
[1721233234575,2.95784115,3414.6,3413.3,2.9297]
[1721233234760,2.95784115,3414.6,3412.7,3.0]
[1721233234761,2.92886,3414.3,3412.7,3.0]
[1721233234947,2.92886,3414.3,3412.9,2.92999]
[1721233234948,2.92904,3414.1,3412.9,2.92999]
[1721233235151,2.92904,3414.1,3413.0,3.0]
[1721233235336,0.05408333,3414.0,3413.0,3.0]
[1721233235531,2.98321333,3414.0,3412.9,3.0]
[1721233235776,2.98321333,3414.0,3412.3,3.09]
[1721233235777,2.98321333,3414.0,3412.7,5.93022]
[1721233235935,0.05408333,3414.0,3412.8,3.683022]
[1721233236132,2.3478,3415.6,3413.8,2.92927]
[1721233236485,2.92817,3415.1,3413.9,2.92913]
[1721233236653,0.05417573,3414.9,3413.9,2.92913]
[1721233237006,0.05417573,3414.9,3413.7,2.92937]
[1721233237293,0.05417573,3414.9,3413.9,2.92919]
[1721233237464,2.98258573,3414.9,3413.7,3.815262]
[1721233237874,2.92861,3414.6,3413.4,3.0]
[1721233238248,2.92885,3414.3,3412.8,0.593022]
[1721233238457,2.92885,3414.3,3413.2,2.92972]
[1721233238458,0.0541193,3414.2,3413.2,2.92972]
[1721233238655,0.0541193,3414.2,3412.2,5.25498]
[1721233238894,2.9292,3413.9,3412.7,2.93022]
[1721233239063,2.9292,3413.9,3412.9,2.93005]
[1721233239265,0.05431934,3413.8,3413.0,2.92995]
[1721233239465,2.92912,3414.0,3413.0,2.92995]
[1721233239672,0.05429673,3413.7,3413.3,2.9297]
[1721233239874,0.05429673,3413.7,3413.0,0.586]
[1721233239875,2.92909,3414.1,3413.0,0.586]
[1721233240069,2.2793,3413.5,3413.0,2.92997]
[1721233240272,2.2793,3413.5,3411.7,3.28943367]
[1721233240273,1.762,3412.8,3407.9,3.98589726]
[1721233240458,2.93209,3410.6,3408.2,6.02407]
[1721233240653,2.93176,3411.0,3409.2,2.93316]
[1721233240919,2.93035,3412.6,3408.7,2.93365]
[1721233240920,0.05355771,3410.9,3409.7,2.93278]
[1721233241192,3.534,3412.4,3409.8,2.36438343]
[1721233241193,2.93135,3411.4,3409.8,2.36438343]
[1721233241413,2.93135,3411.4,3409.8,2.07110543]
[1721233241414,0.02923115,3411.3,3409.8,2.07110543]
[1721233241557,2.93167,3411.1,3409.7,2.9328]
[1721233241897,2.98484345,3411.0,3409.8,35.0]
[1721233242105,2.93132,3411.5,3409.8,35.0]
[1721233242324,0.02923115,3411.4,3409.3,2.93307]
[1721233242530,2.93203,3410.7,3409.0,2.93338]
[1721233242803,2.93204,3410.6,3409.3,2.93315]
[1721233243103,2.93165,3411.1,3409.3,2.93315]
[1721233243315,0.05273814,3410.5,3409.1,0.293338]
[1721233243520,2.93118,3411.6,3409.8,2.93264]
[1721233243809,0.05271547,3410.4,3410.3,2.93229]
[1721233243963,5.21045,3411.7,3410.4,2.93217]
[1721233244159,2.93117,3411.6,3410.4,2.93217]
[1721233244895,0.02923115,3411.6,3409.9,35.0]
[1721233245095,2.93158,3411.2,3410.0,2.93254]
[1721233245313,2.93169,3411.0,3409.9,35.0]
[1721233245473,0.02923115,3410.9,3409.9,35.0]
[1721233245707,2.93219,3410.5,3409.1,0.293338]
[1721233245886,0.02923115,3410.4,3409.2,2.93322]
[1721233246098,0.0525917,3410.4,3409.3,2.93315]
[1721233246277,0.08182285,3410.4,3409.4,35.0]
[1721233246594,0.02923115,3410.4,3409.4,35.0]
[1721233246898,5.31836,3410.3,3409.4,35.0]
[1721233247104,5.31836,3410.3,3408.7,2.93361]
[1721233247105,2.93256,3410.0,3408.7,2.93361]
[1721233247309,3.01405137,3410.2,3408.8,5.93357]
[1721233247463,0.05237219,3409.9,3408.8,5.93357]
[1721233247800,2.386,3410.3,3409.1,2.93326]
[1721233248013,0.05269782,3409.8,3408.9,2.93349]
[1721233248307,2.386,3410.3,3409.3,2.9331]
[1721233248601,0.05249501,3409.7,3409.4,35.0]
[1721233248767,2.386,3410.3,3409.4,35.0]
[1721233248964,2.386,3410.3,3409.4,37.93306]
[1721233249318,2.93193,3410.8,3409.5,2.93296]
[1721233249615,0.05269237,3410.2,3409.5,2.93296]
[1721233249759,0.05269237,3410.2,3409.6,2.93287]
[1721233250096,0.02923115,3410.9,3409.5,4.75150973]
[1721233250302,2.96101115,3410.9,3409.5,4.75150973]
[1721233250504,2.96101115,3410.9,3409.4,35.0]
[1721233250505,0.02923115,3410.9,3409.4,35.0]
[1721233250687,2.98417143,3410.8,3409.5,3.0]
[1721233250872,2.9323,3410.3,3409.4,35.0]
[1721233251200,0.02923115,3410.7,3409.4,35.0]
[1721233251400,2.3878,3411.0,3409.4,35.0]
[1721233251706,0.07978534,3410.9,3409.6,2.93287]
[1721233251879,3.01156534,3410.9,3409.6,2.93287]
[1721233252280,0.05055419,3410.9,3409.9,2.93263]
[1721233252477,0.07978534,3410.9,3409.9,2.93263]
[1721233253249,0.07978534,3410.9,3410.3,2.93222]
[1721233253372,0.05055419,3410.9,3410.5,2.93211]
[1721233253785,5.37035,3411.7,3410.6,37.93201]
[1721233254085,5.37035,3411.7,3410.1,2.93245]
[1721233254086,2.93144,3411.3,3410.1,2.93245]
[1721233254433,2.93144,3411.3,3409.5,5.93293]
[1721233254434,2.93171,3411.0,3409.7,2.93279]
[1721233254613,0.02923115,3410.9,3409.8,35.0]
[1721233254922,0.02923115,3410.9,3409.9,2.93262]
[1721233255095,0.02923115,3410.9,3409.8,35.0]
[1721233255302,0.02923115,3410.9,3409.9,2.93261]
[1721233255837,0.02923115,3411.0,3410.1,2.93241]
[1721233255977,2.93126,3411.5,3410.1,2.93241]
[1721233256178,2.93119,3411.6,3410.5,2.93211]
[1721233256394,0.04713499,3411.4,3410.7,2.93186]
[1721233256590,2.4392,3411.7,3410.9,2.93177]
[1721233256818,0.04782705,3411.3,3410.9,2.93177]
[1721233257120,2.4392,3411.7,3411.2,2.93151]
[1721233257281,2.4107,3412.4,3411.2,2.93151]
[1721233257477,2.4107,3412.4,3410.1,5.93244]
[1721233257478,0.04775435,3411.6,3411.3,2.93142]
[1721233257733,5.34119,3412.4,3411.3,2.93142]
[1721233257878,0.04768152,3411.5,3411.3,2.93142]
[1721233258080,0.04768152,3411.5,3411.1,2.9316]
[1721233258081,2.95980115,3412.3,3411.1,2.9316]
[1721233258420,0.04767085,3411.4,3410.5,2.93207]
[1721233258621,0.02923115,3412.2,3410.5,2.93207]
[1721233258622,2.9309,3412.0,3410.8,2.93184]
[1721233258797,0.02923115,3411.9,3410.8,2.93184]
[1721233258994,2.93107,3411.8,3410.3,2.93228]
[1721233259210,0.02923115,3411.7,3410.4,3.0]
[1721233259406,0.07677422,3411.7,3410.7,2.93193]
[1721233259621,0.02923115,3411.7,3410.7,2.93193]
[1721233259835,0.02923115,3411.7,3410.6,2.93196]
[1721233259836,0.04752042,3411.6,3410.8,2.93183]
[1721233260040,0.04752042,3411.6,3410.8,0.586379]
[1721233260210,0.04752042,3411.6,3411.3,2.93141]
[1721233260536,0.04752042,3411.6,3411.1,2.93152]
[1721233260537,2.4107,3412.4,3411.4,2.93134]
[1721233260737,2.4107,3412.4,3411.3,2.93142]
[1721233260738,0.04797852,3412.3,3411.3,2.93142]
[1721233260928,0.04797852,3412.3,3411.6,2.93117]
[1721233261108,0.04797852,3412.3,3411.7,2.93107]
[1721233261297,0.04797852,3412.3,3411.9,2.93091]
[1721233261494,2.93009,3412.9,3411.8,2.93099]
[1721233261749,0.07729462,3412.8,3411.8,2.93099]
[1721233262000,0.07729462,3412.8,3410.9,3.0]
[1721233262001,2.93041,3412.5,3411.4,2.93128]
[1721233262307,5.3367,3411.9,3410.0,2.93247]
[1721233262514,3.00812224,3411.8,3410.1,3.225647]
[1721233262836,0.02923115,3411.7,3410.1,3.225647]
[1721233262995,0.02923115,3411.7,3410.7,2.93194]
[1721233263200,0.04781582,3411.6,3410.7,2.93194]
[1721233263412,0.04781582,3411.6,3410.5,2.93211]
[1721233263618,0.04781582,3411.6,3410.8,2.93185]
[1721233263834,0.04781582,3411.6,3411.2,2.93151]
[1721233264236,0.04781582,3411.6,3411.0,2.93168]
[1721233264439,2.93084,3412.0,3410.6,2.93202]
[1721233264610,2.93102,3411.8,3410.6,2.93202]
[1721233264945,0.04785738,3411.7,3410.8,2.9318]
[1721233265242,0.04785738,3411.7,3411.6,2.93117]
[1721233265604,2.3858,3412.4,3411.6,2.93117]
[1721233265939,0.04806877,3412.3,3411.6,2.93117]
[1721233266150,0.04806877,3412.3,3412.0,2.93082]
[1721233266438,2.4962,3413.2,3412.0,2.93077]
[1721233266439,0.02923115,3413.1,3412.0,2.93077]
[1721233266641,2.92998,3413.0,3412.0,2.93077]
[1721233266942,0.02923115,3412.9,3412.0,2.93077]
[1721233267151,0.04817148,3412.8,3412.1,2.93073]
[1721233267370,0.02923115,3413.1,3411.8,2.93099]
[1721233267520,2.93002,3413.0,3411.7,2.93109]
[1721233267831,0.07747315,3412.9,3411.6,2.93111]
[1721233268015,2.93021,3412.8,3411.7,2.93106]
[1721233268386,3.00765792,3412.7,3411.7,2.93106]
[1721233268663,0.07742792,3412.7,3411.7,2.93106]
[1721233268831,0.04819677,3412.7,3411.9,2.93083]
[1721233269158,2.4962,3413.2,3412.1,2.93067]
[1721233269159,2.92989,3413.1,3412.1,2.93067]
[1721233269332,2.92989,3413.1,3411.2,3.0]
[1721233269333,2.93013,3412.9,3411.2,3.0]
[1721233269655,2.4962,3413.2,3412.1,2.93069]
[1721233269656,0.04820562,3412.8,3412.1,2.93069]
[1721233269861,0.04820562,3412.8,3412.2,2.98920785]
[1721233270081,2.4962,3413.2,3412.3,2.93056]
[1721233270361,5.92935,3413.8,3411.2,2.93145]
[1721233270362,0.02923115,3413.7,3412.7,2.93022]
[1721233270518,0.0485001,3413.6,3412.7,2.93022]
[1721233270718,2.92929,3413.8,3412.7,2.93022]
[1721233270954,0.04854665,3413.7,3412.7,2.93022]
[1721233271352,0.04854665,3413.7,3413.0,2.92992]
[1721233271518,0.02923115,3413.8,3413.0,2.92992]
[1721233271721,0.04855978,3413.7,3412.9,2.93005]
[1721233271960,0.04855978,3413.7,3413.2,2.9298]
[1721233272158,2.4689,3413.9,3413.2,2.9298]
[1721233272480,0.04855249,3413.8,3413.3,2.92971]
[1721233272767,0.04855249,3413.8,3413.0,2.92994]
[1721233273331,0.04855249,3413.8,3413.1,2.92988]
[1721233273922,0.04855249,3413.8,3413.5,2.92949]
[1721233274232,5.35748,3414.7,3413.4,2.9296]
[1721233274233,5.38669115,3414.7,3413.4,2.9296]
[1721233274438,5.38669115,3414.7,3413.5,2.92953]
[1721233274439,2.92868,3414.5,3413.5,2.92953]
[1721233274639,0.02923115,3414.4,3413.5,2.92953]
[1721233274957,0.02923115,3414.4,3413.5,2.92951]
[1721233274958,0.07646885,3414.4,3413.5,2.92951]
[1721233275174,0.07646885,3414.4,3413.4,2.92962]
[1721233275175,3.00529885,3414.4,3413.4,2.92962]
[1721233275323,2.92888,3414.3,3413.1,2.92987]
[1721233275524,3.00536361,3414.2,3412.8,2.93014]
[1721233275858,2.92945,3413.7,3412.5,2.93038]
[1721233276083,2.4213,3414.1,3412.0,2.93079]
[1721233276084,2.9297,3413.4,3412.0,2.93079]
[1721233276361,0.0763072,3413.3,3412.3,2.93049]
[1721233276560,0.0763072,3413.3,3412.4,2.93047]
[1721233276561,0.02923115,3413.2,3412.4,2.93047]
[1721233276763,0.04704469,3413.1,3412.4,2.93047]
[1721233277127,0.04704469,3413.1,3412.1,2.93071]
[1721233277363,0.04704469,3413.1,3412.3,2.93049]
[1721233277517,0.02923115,3413.5,3412.6,2.93029]
[1721233277841,2.97671897,3413.4,3412.0,2.93076]
[1721233278051,2.4539,3413.1,3411.6,2.93116]
[1721233278223,2.93032,3412.6,3411.5,2.93125]
[1721233278418,2.95970115,3412.5,3411.1,2.93159]
[1721233278621,2.4701,3412.1,3410.9,2.93175]
[1721233278875,2.93112,3411.7,3410.6,2.932]
[1721233279019,0.02923115,3411.6,3410.6,2.932]
[1721233279225,3.00640155,3411.6,3410.4,2.9322]
[1721233279578,3.00640155,3411.6,3410.5,2.93211]
[1721233279774,2.93126,3411.5,3410.2,2.93237]
[1721233280076,2.93144,3411.3,3410.1,0.293247]
[1721233280223,0.02923115,3411.2,3410.1,2.93238]
[1721233280419,0.04601929,3411.2,3410.1,2.93238]
[1721233280659,0.04601929,3411.2,3410.4,2.9322]
[1721233280870,0.02923115,3411.3,3410.4,2.9322]
[1721233281023,0.04590061,3411.1,3410.4,2.9322]
[1721233281222,0.04594727,3411.2,3410.1,2.93238]
[1721233281471,3.0,3412.0,3410.1,2.93238]
[1721233281472,0.04590195,3411.0,3410.5,2.9321]
[1721233281623,0.04592461,3411.1,3410.5,2.9321]
[1721233281826,2.93111,3411.7,3410.5,2.9321]
[1721233282024,0.02923115,3411.6,3410.5,2.9321]
[1721233282222,0.02923115,3411.6,3410.8,2.93184]
[1721233282223,0.04601389,3411.6,3410.8,2.93184]